fUSD/lending_fUSD_20240329
["ID","MTS","AMOUNT","RATE_DAILY","PERIOD"]
[321005645,1711743053571,-500.0,0.00052054,120]
[321005646,1711743053581,-500.0,0.00052054,120]
[321005647,1711743053591,-500.0,0.00052054,120]
[321005648,1711743053600,-500.0,0.00052054,120]
[321005649,1711743053609,-500.0,0.00052054,120]
[321005650,1711743053618,-500.0,0.00052054,120]
[321005651,1711743053627,-500.0,0.00052054,120]
[321005652,1711743053636,-500.0,0.00052054,120]
[321005653,1711743053645,-500.0,0.00052054,120]
[321005654,1711743053654,-533.72295597,0.00052054,120]
[321005655,1711743053663,-500.0,0.00052054,120]
[321005656,1711743053672,-500.0,0.00052054,120]
[321005657,1711743053681,-500.0,0.00052054,120]
[321005658,1711743053690,-500.0,0.00052054,120]
[321005659,1711743053700,-500.0,0.00052054,120]
[321005660,1711743053709,-500.0,0.00052054,120]
[321005661,1711743053718,-500.0,0.00052054,120]
[321005662,1711743053727,-585.45,0.00052054,2]
[321005663,1711743053736,-500.0,0.00052054,120]
[321005664,1711743053745,-2237.67,0.00052054,120]
[321005665,1711743053754,-500.0,0.00052054,120]
[321005666,1711743053764,-500.0,0.00052054,120]
[321005667,1711743053774,-500.0,0.00052054,120]
[321005668,1711743053992,-507.78704807,0.00052054,120]
[321005669,1711743054001,-583.33,0.00052054,120]
[321005670,1711743054012,-500.0,0.00052054,120]
[321005671,1711743054021,-1416.86,0.00052054,120]
[321005672,1711743054030,-500.0,0.00052054,120]
[321005673,1711743054040,-4471.83,0.00052054,120]
[321005674,1711743054050,-506.10892577,0.00052054,120]
[321005675,1711743054059,-500.0,0.00052054,120]
[321005676,1711743054068,-500.0,0.00052054,120]
[321005677,1711743054077,-500.0,0.00052054,120]
[321005678,1711743054086,-500.0,0.00052054,120]
[321005679,1711743054095,-507.01558936,0.00052054,120]
[321005680,1711743054104,-500.0,0.00052054,120]
[321005681,1711743054113,-500.0,0.00052054,120]
[321005682,1711743054121,-506.38484602,0.00052054,120]
[321005683,1711743054130,-557.16,0.00052054,120]
[321005684,1711743054140,-500.0,0.00052054,120]
[321005685,1711743054149,-500.0,0.00052054,120]
[321005686,1711743054158,-500.0,0.00052054,120]
[321005687,1711743054167,-500.0,0.00052054,120]
[321005688,1711743054177,-500.0,0.00052054,120]
[321005689,1711743054186,-500.0,0.00052054,120]
[321005690,1711743054195,-762.04,0.00052054,120]
[321005691,1711743054204,-500.0,0.00052054,120]
[321005692,1711743054213,-500.0,0.00052054,120]
[321005693,1711743054223,-500.0,0.00052054,120]
[321005694,1711743054233,-500.0,0.00052054,120]
[321005695,1711743054242,-500.0,0.00052054,120]
[321005696,1711743054251,-503.40781715,0.00052054,120]
[321005697,1711743054263,-500.0,0.00052054,120]
[321005698,1711743054272,-190.23,0.00052054,120]
[321005699,1711743054283,-2221.11,0.00052054,120]
[321005700,1711743054292,-500.0,0.00052054,120]
[321005701,1711743054301,-500.0,0.00052054,120]
[321005702,1711743054311,-510.10476981,0.00052054,120]
[321005703,1711743054320,-3766.78,0.00052054,120]
[321005704,1711743054329,-500.0,0.00052054,120]
[321005705,1711743054338,-500.0,0.00052054,120]
[321005706,1711743054348,-511.43,0.00052054,120]
[321005707,1711743054356,-500.0,0.00052054,120]
[321005708,1711743054366,-500.0,0.00052054,120]
[321005709,1711743054375,-2235.61,0.00052054,120]
[321005710,1711743054384,-500.0,0.00052054,120]
[321005711,1711743054393,-780.71,0.00052054,120]
[321005712,1711743054402,-1178.74,0.00052054,120]
[321005713,1711743054411,-160.04528867,0.00052054,120]
[321005714,1711743054421,-501.90679198,0.00052054,120]
[321005715,1711743054430,-556.61,0.00052054,120]
[321005716,1711743054439,-500.0,0.00052054,120]
[321005717,1711743054448,-500.0,0.00052054,120]
[321005718,1711743054457,-500.0,0.00052054,120]
[321005719,1711743054466,-500.0,0.00052054,120]
[321005720,1711743054475,-500.0,0.00052054,120]
[321005721,1711743054485,-446.956826,0.00052054,120]
[321005722,1711743054494,-446.956826,0.00052054,120]
[321005723,1711743054503,-151.0,0.00052054,120]
[321005724,1711743054512,-151.0,0.00052054,120]
[321005725,1711743054521,-500.0,0.00052054,120]
[321005726,1711743054531,-500.0,0.00052054,120]
[321005727,1711743054540,-500.0,0.00052054,120]
[321005728,1711743054549,-500.0,0.00052054,120]
[321005729,1711743054558,-446.956826,0.00052054,120]
[321005730,1711743054566,-446.956826,0.00052054,120]
[321005731,1711743054576,-619.5,0.00052054,120]
[321005732,1711743054585,-500.0,0.00052054,120]
[321005733,1711743054594,-629.04,0.00052054,120]
[321005734,1711743054603,-560.27498569,0.00052054,120]
[321005735,1711743054611,-500.0,0.00052054,120]
[321005736,1711743054621,-3138.6,0.00052054,120]
[321005737,1711743054630,-2852.03,0.00052054,120]
[321005738,1711743054639,-8058.65,0.00052054,120]
[321005739,1711743054648,-524.1,0.00052054,120]
[321005740,1711743054657,-500.0,0.00052054,120]
[321005741,1711743054666,-500.0,0.00052054,120]
[321005742,1711743054676,-527.47167903,0.00052054,120]
[321005743,1711743054685,-500.0,0.00052054,120]
[321005744,1711743054694,-417.27237832,0.00052054,120]
[321005745,1711743054703,-500.0,0.00052054,120]
[321005746,1711743054711,-500.0,0.00052054,120]
[321005747,1711743054720,-257.512104,0.00052054,120]
[321005748,1711743054730,-500.0,0.00052054,120]
[321005749,1711743054739,-500.0,0.00052054,120]
[321005750,1711743054748,-646.56,0.00052054,120]
[321005751,1711743054757,-500.0,0.00052054,120]
[321005752,1711743054766,-630.23,0.00052054,120]
[321005753,1711743054775,-500.0,0.00052054,120]
[321005754,1711743054784,-500.0,0.00052054,120]
[321005755,1711743054793,-512.86842893,0.00052054,120]
[321005756,1711743054802,-2086.46,0.00052054,120]
[321005757,1711743054811,-756.48,0.00052054,120]
[321005758,1711743054821,-506.14445608,0.00052054,120]
[321005759,1711743054830,-528.9533122,0.00052054,120]
[321005760,1711743054839,-500.0,0.00052054,120]
[321005761,1711743054848,-500.0,0.00052054,120]
[321005762,1711743054859,-500.0,0.00052054,120]
[321005763,1711743054868,-1381.85,0.00052054,120]
[321005764,1711743054879,-1786.25,0.00052054,120]
[321005765,1711743054889,-500.0,0.00052054,120]
[321005766,1711743054898,-500.0,0.00052054,120]
[321005767,1711743054907,-1037.49,0.00052054,120]
[321005768,1711743054916,-500.0,0.00052054,120]
[321005769,1711743054925,-5491.84,0.00052054,120]
[321005770,1711743054938,-500.0,0.00052054,120]
[321005771,1711743054947,-500.0,0.00052054,120]
[321005772,1711743054956,-500.0,0.00052054,120]
[321005773,1711743054965,-4044.9,0.00052054,120]
[321005774,1711743054973,-500.0,0.00052054,120]
[321005775,1711743054984,-500.0,0.00052054,120]
[321005776,1711743054993,-963.3,0.00052054,120]
[321005777,1711743055002,-500.0,0.00052054,120]
[321005778,1711743055012,-500.0,0.00052054,120]
[321005779,1711743055021,-151.0,0.00052054,120]
[321005780,1711743055030,-506.59841792,0.00052054,120]
[321005781,1711743055039,-151.0,0.00052054,120]
[321005782,1711743055048,-500.0,0.00052054,120]
[321005783,1711743055058,-2228.41,0.00052054,120]
[321005784,1711743055066,-500.0,0.00052054,120]
[321005785,1711743055075,-500.0,0.00052054,120]
[321005786,1711743055084,-1266.86,0.00052054,120]
[321005787,1711743055093,-500.0,0.00052054,120]
[321005788,1711743055102,-500.0,0.00052054,120]
[321005789,1711743055111,-2742.97,0.00052054,120]
[321005790,1711743055120,-1695.14,0.00052054,120]
[321005791,1711743055129,-500.0,0.00052054,120]
[321005792,1711743055137,-500.0,0.00052054,120]
[321005793,1711743055146,-500.0,0.00052054,120]
[321005794,1711743055155,-500.0,0.00052054,120]
[321005795,1711743055164,-506.3660379,0.00052054,120]
[321005796,1711743055173,-520.63737762,0.00052054,120]
[321005797,1711743055183,-1156.36,0.00052054,120]
[321005798,1711743055192,-500.0,0.00052054,120]
[321005799,1711743055202,-3243.98,0.00052054,120]
[321005800,1711743055212,-500.0,0.00052054,120]
[321005801,1711743055221,-500.0,0.00052054,120]
[321005802,1711743055231,-1000.0,0.00052054,14]
[321005803,1711743055240,-500.0,0.00052054,120]
[321005804,1711743055250,-3781.4,0.00052054,120]
[321005805,1711743055259,-500.0,0.00052054,120]
[321005806,1711743055269,-500.0,0.00052054,120]
[321005807,1711743055278,-1170.04,0.00052054,120]
[321005808,1711743055288,-500.0,0.00052054,120]
[321005809,1711743055297,-500.0,0.00052054,120]
[321005810,1711743055305,-500.0,0.00052054,120]
[321005811,1711743055315,-996.14,0.00052054,120]
[321005812,1711743055325,-659.08,0.00052054,120]
[321005813,1711743055334,-500.0,0.00052054,120]
[321005814,1711743055344,-500.0,0.00052054,120]
[321005815,1711743055354,-500.0,0.00052054,120]
[321005816,1711743055364,-500.0,0.00052054,7]
[321005817,1711743055374,-151.0,0.00052054,120]
[321005818,1711743055384,-590.9,0.00052054,120]
[321005819,1711743055394,-151.0,0.00052054,120]
[321005820,1711743055404,-254.3631597,0.00052054,120]
[321005821,1711743055413,-4977.0,0.00052054,120]
[321005822,1711743055423,-500.0,0.00052054,120]
[321005823,1711743055433,-500.0,0.00052054,120]
[321005824,1711743055442,-500.0,0.00052054,120]
[321005825,1711743055452,-493.36088967,0.00052054,120]
[321005826,1711743055461,-500.0,0.00052054,120]
[321005827,1711743055471,-500.0,0.00052054,120]
[321005828,1711743055480,-3890.35,0.00052054,120]
[321005829,1711743055489,-784.3,0.00052054,120]
[321005830,1711743055499,-511.16799665,0.00052054,120]
[321005831,1711743055509,-500.0,0.00052054,120]
[321005832,1711743055518,-657.95,0.00052054,120]
[321005833,1711743055527,-500.0,0.00052054,120]
[321005834,1711743055537,-3045.62,0.00052054,120]
[321005835,1711743055546,-500.0,0.00052054,120]
[321005836,1711743055556,-500.0,0.00052054,120]
[321005837,1711743055565,-500.0,0.00052054,120]
[321005838,1711743055574,-500.0,0.00052054,120]
[321005839,1711743055583,-500.0,0.00052054,120]
[321005840,1711743055592,-500.0,0.00052054,120]
[321005841,1711743055601,-500.0,0.00052054,120]
[321005842,1711743055611,-762.49,0.00052054,120]
[321005843,1711743055619,-500.0,0.00052054,120]
[321005844,1711743055628,-500.0,0.00052054,120]
[321005845,1711743055637,-713.8,0.00052054,120]
[321005846,1711743055646,-876.73,0.00052054,120]
[321005847,1711743055655,-500.0,0.00052054,120]
[321005848,1711743055666,-500.0,0.00052054,120]
[321005849,1711743055675,-500.0,0.00052054,120]
[321005850,1711743055685,-3322.87,0.00052054,120]
[321005851,1711743055694,-975.43,0.00052054,120]
[321005852,1711743055703,-500.0,0.00052054,120]
[321005853,1711743055712,-500.0,0.00052054,120]
[321005854,1711743055721,-500.0,0.00052054,120]
[321005855,1711743055731,-500.0,0.00052054,120]
[321005856,1711743055740,-500.0,0.00052054,120]
[321005857,1711743055749,-500.0,0.00052054,120]
[321005858,1711743055758,-1010.8,0.00052054,120]
[321005859,1711743055767,-500.0,0.00052054,120]
[321005860,1711743055776,-1101.95,0.00052054,120]
[321005861,1711743055785,-513.82806008,0.00052054,120]
[321005862,1711743055795,-641.9,0.00052054,120]
[321005863,1711743055804,-500.0,0.00052054,120]
[321005864,1711743055814,-500.0,0.00052054,120]
[321005865,1711743055823,-151.0,0.00052054,120]
[321005866,1711743055832,-151.0,0.00052054,120]
[321005867,1711743055841,-500.0,0.00052054,120]
[321005868,1711743055850,-513.73463759,0.00052054,120]
[321005869,1711743055859,-5674.68,0.00052054,120]
[321005870,1711743055868,-500.0,0.00052054,120]
[321005871,1711743055877,-500.0,0.00052054,120]
[321005872,1711743055887,-500.0,0.00052054,120]
[321005873,1711743055896,-500.0,0.00052054,120]
[321005874,1711743055906,-500.0,0.00052054,120]
[321005875,1711743055915,-958.84,0.00052054,120]
[321005876,1711743055925,-1101.21,0.00052054,120]
[321005877,1711743055938,-1619.59,0.00052054,120]
[321005878,1711743055948,-500.0,0.00052054,120]
[321005879,1711743055957,-500.0,0.00052054,120]
[321005880,1711743055966,-608.38,0.00052054,120]
[321005881,1711743055976,-2497.904685,0.00052054,120]
[321005882,1711743055985,-2497.904685,0.00052054,120]
[321005883,1711743056145,-500.0,0.00052054,120]
[321005884,1711743056155,-1270.9,0.00052054,120]
[321005885,1711743056164,-500.0,0.00052054,120]
[321005886,1711743056174,-500.0,0.00052054,120]
[321005887,1711743056183,-2497.904685,0.00052054,120]
[321005888,1711743056192,-2497.904685,0.00052054,120]
[321005889,1711743056202,-1001.79,0.00052054,120]
[321005890,1711743056211,-151.0,0.00052054,120]
[321005891,1711743056220,-151.0,0.00052054,120]
[321005892,1711743056229,-500.0,0.00052054,120]
[321005893,1711743056238,-500.0,0.00052054,120]
[321005894,1711743056247,-528.99358492,0.00052054,120]
[321005895,1711743056256,-704.57,0.00052054,120]
[321005896,1711743056265,-1109.94,0.00052054,120]
[321005897,1711743056274,-500.0,0.00052054,120]
[321005898,1711743056284,-500.0,0.00052054,120]
[321005899,1711743056293,-966.68,0.00052054,120]
[321005900,1711743056302,-500.0,0.00052054,120]
[321005901,1711743056311,-500.0,0.00052054,120]
[321005902,1711743056320,-500.0,0.00052054,120]
[321005903,1711743056329,-500.0,0.00052054,120]
[321005904,1711743056338,-863.63,0.00052054,120]
[321005905,1711743056348,-763.79,0.00052054,120]
[321005906,1711743056359,-896.89,0.00052054,120]
[321005907,1711743056368,-500.0,0.00052054,120]
[321005908,1711743056377,-516.41788967,0.00052054,120]
[321005909,1711743056387,-1672.3,0.00052054,120]
[321005910,1711743056396,-1827.42,0.00052054,120]
[321005911,1711743056405,-500.0,0.00052054,120]
[321005912,1711743056414,-500.0,0.00052054,120]
[321005913,1711743056423,-500.0,0.00052054,120]
[321005914,1711743056432,-3729.29,0.00052054,120]
[321005915,1711743056441,-151.0,0.00052054,120]
[321005916,1711743056452,-151.0,0.00052054,120]
[321005917,1711743056461,-510.93153968,0.00052054,120]
[321005918,1711743056470,-530.58007336,0.00052054,120]
[321005919,1711743056480,-3188.94,0.00052054,120]
[321005920,1711743056489,-500.0,0.00052054,120]
[321005921,1711743056498,-740.79,0.00052054,120]
[321005922,1711743056507,-1494.43,0.00052054,120]
[321005923,1711743056516,-500.0,0.00052054,120]
[321005924,1711743056525,-500.0,0.00052054,120]
[321005925,1711743056534,-503.23494447,0.00052054,120]
[321005926,1711743056544,-2612.0,0.00052054,120]
[321005927,1711743056553,-7249.51,0.00052054,120]
[321005928,1711743056562,-500.0,0.00052054,120]
[321005929,1711743056571,-500.0,0.00052054,120]
[321005930,1711743056580,-500.0,0.00052054,120]
[321005931,1711743056589,-270.71477142,0.00052054,120]
[321005932,1711743056598,-500.0,0.00052054,120]
[321005933,1711743056607,-2680.51,0.00052054,120]
[321005934,1711743056617,-843.2,0.00052054,120]
[321005935,1711743056626,-500.0,0.00052054,120]
[321005936,1711743056635,-4459.43,0.00052054,120]
[321005937,1711743056643,-500.0,0.00052054,120]
[321005938,1711743056652,-500.0,0.00052054,120]
[321005939,1711743056662,-500.0,0.00052054,120]
[321005940,1711743056671,-1947.08,0.00052054,120]
[321005941,1711743056680,-3624.86,0.00052054,120]
[321005942,1711743056689,-500.0,0.00052054,120]
[321005943,1711743056698,-500.0,0.00052054,120]
[321005944,1711743056707,-2027.87,0.00052054,120]
[321005945,1711743056716,-500.0,0.00052054,120]
[321005946,1711743056725,-1617.65,0.00052054,120]
[321005947,1711743056735,-500.0,0.00052054,120]
[321005948,1711743056744,-1765.5,0.00052054,120]
[321005949,1711743056753,-503.24012657,0.00052054,120]
[321005950,1711743056762,-1764.1,0.00052054,120]
[321005951,1711743056773,-500.0,0.00052054,120]
[321005952,1711743056782,-506.56641889,0.00052054,120]
[321005953,1711743056792,-500.0,0.00052054,120]
[321005954,1711743056801,-957.9,0.00052054,120]
[321005955,1711743056810,-10351.89,0.00052054,120]
[321005956,1711743056819,-13296.96,0.00052054,120]
[321005957,1711743056828,-517.98,0.00052054,120]
[321005958,1711743056837,-1873.21,0.00052054,120]
[321005959,1711743056846,-508.84292618,0.00052054,120]
[321005960,1711743056855,-500.0,0.00052054,120]
[321005961,1711743056864,-505.55057451,0.00052054,120]
[321005962,1711743056873,-504.78,0.00052054,120]
[321005963,1711743056882,-2418.2,0.00052054,120]
[321005964,1711743056891,-151.0,0.00052054,120]
[321005965,1711743056900,-158.935207,0.00052054,120]
[321005966,1711743056909,-2461.01,0.00052054,120]
[321005967,1711743056918,-500.0,0.00052054,120]
[321005968,1711743056927,-2944.8,0.00052054,120]
[321005969,1711743056940,-1607.86,0.00052054,120]
[321005970,1711743056949,-500.0,0.00052054,120]
[321005971,1711743056958,-500.0,0.00052054,120]
[321005972,1711743056967,-500.0,0.00052054,120]
[321005973,1711743056977,-500.0,0.00052054,120]
[321005974,1711743056986,-500.0,0.00052054,120]
[321005975,1711743056995,-500.0,0.00052054,120]
[321005976,1711743057005,-500.0,0.00052054,120]
[321005977,1711743057015,-500.0,0.00052054,120]
[321005978,1711743057024,-500.0,0.00052054,120]
[321005979,1711743057033,-500.0,0.00052054,120]
[321005980,1711743057042,-500.0,0.00052054,120]
[321005981,1711743057050,-500.0,0.00052054,120]
[321005982,1711743057059,-500.0,0.00052054,120]
[321005983,1711743057068,-500.0,0.00052054,120]
[321005984,1711743057077,-500.0,0.00052054,120]
[321005985,1711743057086,-500.0,0.00052054,120]
[321005986,1711743057095,-500.0,0.00052054,120]
[321005987,1711743057105,-500.0,0.00052054,120]
[321005988,1711743057113,-500.0,0.00052054,120]
[321005989,1711743057122,-500.0,0.00052054,120]
[321005990,1711743057131,-500.0,0.00052054,120]
[321005991,1711743057140,-500.0,0.00052054,120]
[321005992,1711743057149,-500.0,0.00052054,120]
[321005993,1711743057158,-500.0,0.00052054,120]
[321005994,1711743057167,-3103.51,0.00052054,120]
[321005995,1711743057176,-500.0,0.00052054,120]
[321005996,1711743057185,-500.0,0.00052054,120]
[321005997,1711743057194,-500.0,0.00052054,120]
[321005998,1711743057203,-500.0,0.00052054,120]
[321005999,1711743057212,-500.0,0.00052054,120]
[321006000,1711743057221,-500.0,0.00052054,80]
[321006001,1711743057230,-500.0,0.00052054,120]
[321006002,1711743057240,-500.0,0.00052054,120]
[321006003,1711743057249,-500.0,0.00052054,120]
[321006004,1711743057257,-348.0,0.00052054,120]
[321006005,1711743057267,-500.0,0.00052054,120]
[321006006,1711743057276,-500.0,0.00052054,120]
[321006007,1711743057285,-500.0,0.00052054,120]
[321006008,1711743057294,-2940.12,0.00052054,120]
[321006009,1711743057303,-500.0,0.00052054,120]
[321006010,1711743057312,-4477.27,0.00052054,120]
[321006011,1711743057325,-500.0,0.00052054,120]
[321006012,1711743057335,-1003.91,0.00052054,120]
[321006013,1711743057344,-500.0,0.00052054,120]
[321006014,1711743057353,-782.17,0.00052054,120]
[321006015,1711743057362,-500.0,0.00052054,120]
[321006016,1711743057371,-500.0,0.00052054,120]
[321006017,1711743057381,-910.45,0.00052054,120]
[321006018,1711743057390,-500.0,0.00052054,120]
[321006019,1711743057400,-2328.02,0.00052054,120]
[321006020,1711743057409,-1584.87,0.00052054,120]
[321006021,1711743057419,-500.0,0.00052054,120]
[321006022,1711743057428,-608.2,0.00052054,120]
[321006023,1711743057437,-500.0,0.00052054,120]
[321006024,1711743057447,-500.0,0.00052054,120]
[321006025,1711743057456,-594.05,0.00052054,120]
[321006026,1711743057465,-995.82,0.00052054,120]
[321006027,1711743057475,-611.38,0.00052054,120]
[321006028,1711743057484,-500.0,0.00052054,120]
[321006029,1711743057494,-500.0,0.00052054,120]
[321006030,1711743057503,-501.75042013,0.00052054,120]
[321006031,1711743057512,-571.66,0.00052054,120]
[321006032,1711743057522,-1818.27,0.00052054,120]
[321006033,1711743057531,-500.0,0.00052054,120]
[321006034,1711743057541,-4183.91,0.00052054,120]
[321006035,1711743057550,-500.0,0.00052054,120]
[321006036,1711743057559,-500.0,0.00052054,120]
[321006037,1711743057568,-4365.84,0.00052054,21]
[321006038,1711743057578,-500.0,0.00052054,120]
[321006039,1711743057588,-500.0,0.00052054,120]
[321006040,1711743057601,-500.0,0.00052054,120]
[321006041,1711743057610,-500.0,0.00052054,120]
[321006042,1711743057619,-500.0,0.00052054,120]
[321006043,1711743057629,-497.3339031,0.00052054,2]
[321006044,1711743057638,-500.0,0.00052054,120]
[321006045,1711743057647,-157.959794,0.00052054,120]
[321006046,1711743057657,-500.0,0.00052054,120]
[321006047,1711743057667,-502.51488865,0.00052054,2]
[321006048,1711743057676,-1348.38,0.00052054,120]
[321006049,1711743057686,-854.64,0.00052054,120]
[321006050,1711743057695,-500.0,0.00052054,120]
[321006051,1711743057704,-519.78623981,0.00052054,120]
[321006052,1711743057713,-1373.05,0.00052054,120]
[321006053,1711743057722,-500.0,0.00052054,120]
[321006054,1711743057732,-1920.43,0.00052054,120]
[321006055,1711743057741,-500.0,0.00052054,120]
[321006056,1711743057750,-548.39,0.00052054,120]
[321006057,1711743057759,-500.0,0.00052054,120]
[321006058,1711743057768,-4841.11,0.00052054,120]
[321006059,1711743057777,-500.0,0.00052054,120]
[321006060,1711743057786,-501.82812388,0.00052054,120]
[321006061,1711743057795,-160.581668,0.00052054,45]
[321006062,1711743057804,-160.581668,0.00052054,45]
[321006063,1711743057813,-375.39114217,0.00052054,120]
[321006064,1711743057822,-1532.21,0.00052054,120]
[321006065,1711743057831,-500.0,0.00052054,120]
[321006066,1711743057841,-151.0,0.00052054,30]
[321006067,1711743057850,-500.0,0.00052054,120]
[321006068,1711743057859,-151.0,0.00052054,30]
[321006069,1711743057870,-3978.71,0.00052054,120]
[321006070,1711743057879,-160.581668,0.00052054,45]
[321006071,1711743057888,-160.581668,0.00052054,45]
[321006072,1711743057898,-500.0,0.00052054,120]
[321006073,1711743057908,-506.94961425,0.00052054,120]
[321006074,1711743057917,-4048.81,0.00052054,120]
[321006075,1711743057929,-398.38199167,0.00052054,120]
[321006076,1711743057939,-445.35966032,0.00052054,120]
[321006077,1711743057949,-500.0,0.00052054,120]
[321006078,1711743057959,-500.0,0.00052054,120]
[321006079,1711743057969,-500.0,0.00052054,60]
[321006080,1711743057978,-503.38880709,0.00052054,120]
[321006081,1711743057987,-500.0,0.00052054,120]
[321006082,1711743057996,-500.0,0.00052054,120]
[321006083,1711743058006,-623.73,0.00052054,120]
[321006084,1711743058015,-500.0,0.00052054,120]
[321006085,1711743058025,-10194.33,0.00052054,120]
[321006086,1711743058035,-500.0,0.00052054,2]
[321006087,1711743058045,-817.33,0.00052054,120]
[321006088,1711743058056,-500.0,0.00052054,120]
[321006089,1711743058066,-500.0,0.00052054,120]
[321006090,1711743058075,-3430.93,0.00052054,120]
[321006091,1711743058084,-158.488173,0.00052054,120]
[321006092,1711743058094,-500.0,0.00052054,120]
[321006093,1711743058103,-500.0,0.00052054,120]
[321006094,1711743058112,-500.0,0.00052054,2]
[321006095,1711743058121,-388.124049,0.00052054,120]
[321006096,1711743058130,-388.124049,0.00052054,120]
[321006097,1711743058139,-1097.14,0.00052054,120]
[321006098,1711743058148,-500.0,0.00052054,120]
[321006099,1711743058157,-500.0,0.00052054,120]
[321006100,1711743058167,-500.0,0.00052054,120]
[321006101,1711743058176,-748.48,0.00052054,120]
[321006102,1711743058186,-388.124049,0.00052054,120]
[321006103,1711743058195,-150.0,0.00052073,7]
[321006104,1711743058205,-354.0,0.00052082,7]
[321006105,1711743058214,-150.0,0.00052091,7]
[321006106,1711743058223,-156.151891,0.00052095,30]
[321006107,1711743058232,-1000.0,0.000521,30]
[321006108,1711743058242,-161.63,0.000521,30]
[321006109,1711743058251,-307.68911322,0.00052135,7]
[321006110,1711743058261,-300.0,0.00052139,7]
[321006111,1711743058270,-150.0,0.00052142,7]
[321006112,1711743058279,-150.0,0.00052153,7]
[321006113,1711743058289,-150.0,0.00052162,7]
[321006114,1711743058298,-1500.0,0.00052166,7]
[321006115,1711743058308,-200.0,0.00052173,30]
[321006116,1711743058317,-800.0,0.00052173,30]
[321006117,1711743058327,-200.0,0.00052173,30]
[321006118,1711743058336,-152.0,0.00052177,3]
[321006119,1711743058345,-150.0,0.00052183,7]
[321006120,1711743058354,-150.0,0.00052191,7]
[321006121,1711743058363,-150.0,0.00052195,7]
[321006122,1711743058372,-150.0,0.00052198,7]
[321006123,1711743058382,-150.0,0.000522,7]
[321006124,1711743058391,-150.0,0.000522,11]
[321006125,1711743058400,-150.0,0.0005221,7]
[321006126,1711743058416,-150.0,0.00052213,7]
[321006127,1711743058430,-151.0,0.00052219,120]
[321006128,1711743058440,-1197.42224654,0.0005222,5]
[321006129,1711743058450,-4779.98852821,0.0005222,5]
[321006130,1711743058459,-152.90997699,0.0005222,7]
[321006131,1711743058468,-150.0,0.00052223,7]
[321006132,1711743058478,-150.0,0.00052227,7]
[321006133,1711743058487,-150.0,0.00052229,7]
[321006134,1711743058497,-689.71935,0.0005224,60]
[321006135,1711743058506,-1155.49316775,0.00052243,4]
[321006136,1711743058516,-150.0,0.00052255,7]
[321006137,1711743058525,-150.0,0.00052263,7]
[321006138,1711743058535,-150.0,0.00052264,7]
[321006139,1711743058544,-150.0,0.00052275,7]
[321006140,1711743058553,-150.0,0.00052275,7]
[321006141,1711743058563,-305.43530816,0.00052288,7]
[321006142,1711743058572,-221.0,0.000523,30]
[321006143,1711743058581,-708.0,0.000523,30]
[321006144,1711743058590,-150.0,0.00052306,7]